Workbook

Sheet State vs Performance
A1: EGU Type | B1: Generation After Gas Shift (MWh) | C1: Actual Rate (lbs CO2/MWh) | D1: ERCs Issued (Needed) Under State Goal | E1: ERCs Issued (Needed) Under Performance Rates | F1: GS_ERCs Issued to NGCC Under Performance Rates | G1: Total ERCs Issued (Needed) Under State Goal | H1: Total ERCs Issued (Needed) Under Performance Rates | I1: Total ERCs Issued (Needed) Under Performance Rates - No GS_ERCs | J1: Emissions Under State Goal (Tons)** | K1: Emissions Under Perforfmance Rate (Tons)** | L1: -
A2: NGCC | B2: =BaselineNGCCGen+GSChange -> 26783421.01 | C2: =VLOOKUP(INDEX(StateNames, $D$7),'State Data'!$A$2:$F$51, 6) -> 900.4745977 | D2: =NGCCGen*((StateGoal-NGCCActualRate)/StateGoal) -> 3385521.895 | E2: =NGCCGen*((NGCCGoal-NGCCActualRate)/NGCCGoal) -> -4497759.613 | F2: =NGCCGen*IGR*(1-(NGCCActualRate/FFSGoal)) -> 2158612.476 | L2: Interim Step 1
A3: FFS | B3: =BaselineFFSGen-GSChange -> 25370640 | C3: =VLOOKUP(INDEX(StateNames, $D$7),'State Data'!$A$2:$F$51, 5) -> 2239.292328 | D3: =FFSGen*((StateGoal-FFSActualRate)/StateGoal) -> -29745851.62 | E3: =FFSGen*((FFSGoal-FFSActualRate)/FFSGoal) -> -18163673.81 | L3: Interim Step 2
G4: =D2+D3 -> -26360329.72 | H4: =E2+E3+F2 -> -20502820.95 | I4: =E2+E3 -> -22661433.42 | J4: =(NGCCGen*NGCCActualRate+FFSGen*FFSActualRate+ERCtoMassConversionRate*G4)/2000 -> 25703250.24 | K4: =(NGCCGen*NGCCActualRate+FFSGen*FFSActualRate+ERCtoMassConversionRate*H4)/2000 -> 28983455.16 | L4: Interim Step 3
L5: -
A6: Assumptions: | L6: Final
A7: State | D7: 3
A8: Compliance Period | L8: 6
A9: lbs/MWh ERC Conversion Rate | C9: 1120
A10: Baseline NGCC Generation (MWh) | C10: =VLOOKUP(INDEX(StateNames, $D$7),'State Data'!$A$2:$F$51, 4) -> 26783421.01
A11: Baseline FFS Generation (MWh) | C11: =VLOOKUP(INDEX(StateNames, $D$7),'State Data'!$A$2:$F$51, 3) -> 25370640
A12: Shift from FFS to NGCC (MWh) | C12: 0
A13: Calcuate Shift | L13: =G4-H4 -> -5857508.778
A15: Possible goal rates and IGR for selected state:
A16: Compliance Period | B16: Interim Step 1 (2022-2024) | C16: Interim Step 2 (2025-2027) | D16: Interim Step 3 (2028-2029) | E16: Interim Goal (2022-2029) | F16: Final Goal (2030+)
A17: State Goal | B17: =VLOOKUP(INDEX(StateNames, $D$7),'State Data'!$A$2:$K$51, 7) -> 1263.009763 | C17: =VLOOKUP(INDEX(StateNames, $D$7),'State Data'!$A$2:$K$51, 8) -> 1149.186854 | D17: =VLOOKUP(INDEX(StateNames, $D$7),'State Data'!$A$2:$K$51, 9) -> 1073.737829 | E17: =VLOOKUP(INDEX(StateNames, $D$7),'State Data'!$A$2:$K$51, 10) -> 1173.491898 | F17: =VLOOKUP(INDEX(StateNames, $D$7),'State Data'!$A$2:$K$51, 11) -> 1030.767341
A18: NGCC Performance Rate | B18: 877 | C18: 817 | D18: 784 | E18: 832 | F18: 771
A19: FFS Performance Rate | B19: 1671 | C19: 1500 | D19: 1380 | E19: 1534 | F19: 1305
A20: Incr. Gen. Factor | B20: 0.22 | C20: 0.32 | D20: 0.28 | F20: 0.26
A22: Goal rates and IGR for selected compliance period:
A23: State Goal | B23: =VLOOKUP(A23,$A$17:$F$20,GoalSelector,FALSE) -> 1030.767341
A24: NGCC Performance Rate | B24: =VLOOKUP(A24,$A$17:$F$20,GoalSelector,FALSE) -> 771
A25: FFS Performance Rate | B25: =VLOOKUP(A25,$A$17:$F$20,GoalSelector,FALSE) -> 1305
A26: Incr. Gen. Factor | B26: =VLOOKUP(A26,$A$17:$F$20,GoalSelector,FALSE) -> 0.26
A28: Cells other than those with a green background are protected, since all other values are calculated. The password to unprotect is 1234.
A30: *The shift from FFS to NGCC can be set manually. Clicking the "Run Goal Seek" button sets the shift to the minimum amount required to make the state goal easier to comply with than the performance rates during the compliance period selected in the drop-down menu, assuming the actual rates specified. The state goal is easier to comply with when the total amount of ERCs needed under the state goal is less than the total amount of ERCs needed under the performance rates.
A32: **Emissions from NGCC and FFS at actual rates minus emissions assumed to be displaced by ERCs required for compliance under each rate-based approach using the assumed conversion rate. The default conversion rate is taken from the AVERT modeling results for the Southwest region in B. Biewald, et al., Air Emissions Displacement by Energy Efficiency and Renewable Energy (June 26, 2015).

Sheet State Data
A1: State | B1: State Name | C1: Baseline FFS Gen (MWh) | D1: Baseline NGCC Gen (MWh) | E1: Baseline FFS Rate (lbs/MWh) | F1: Baseline NGCC Rate (lbs/MWh) | G1: Interim Goal - Step 1 (2022-2024) | H1: Interim Goal - Step 2 (2025-2027) | I1: Interim Goal - Step 3 (2028-2029) | J1: Interim (2022-2029) | K1: Final (2030)
A2: AL | B2: Alabama | C2: 46059839.57 | D2: 53492095.96 | E2: 2263.314637 | F2: 876.6837623 | G2: 1244.114183 | H2: 1132.955097 | I2: 1059.576385 | J2: 1156.795366 | K2: 1018.066561
A3: AR | B3: Arkansas | C3: 32154992.08 | D3: 15651185.02 | E3: 2264.073945 | F3: 896.4915297 | G3: 1410.902902 | H3: 1276.230607 | I3: 1184.577534 | J3: 1304.173384 | K3: 1130.174626
A4: AZ | B4: Arizona | C4: 25370640 | D4: 26783421.01 | E4: 2239.292328 | F4: 900.4745977 | G4: 1263.009763 | H4: 1149.186854 | I4: 1073.737829 | J4: 1173.491898 | K4: 1030.767341
A5: CA | B5: California | C5: 11112636 | D5: 93068611.62 | E5: 1510.721064 | F5: 888.079567 | G5: 961.2830077 | H5: 889.9963346 | I5: 847.6062828 | J5: 906.8797951 | K5: 827.9598441
A6: CO | B6: Colorado | C6: 34248809 | D6: 11131370.27 | E6: 2224.999434 | F6: 917.672907 | G6: 1476.125448 | H6: 1332.258339 | I6: 1233.459096 | J6: 1361.805398 | K6: 1174.014362
A7: CT | B7: Connecticut | C7: 438650 | D7: 15299704.41 | E7: 2061.268574 | F7: 811.4817716 | G7: 898.6836923 | H7: 836.2220212 | I7: 800.6907217 | J7: 851.5657241 | K7: 785.8833286
A8: DE | B8: Delaware | C8: 2491496.6 | D8: 6672110.78 | E8: 1824.693102 | F8: 979.3554342 | G8: 1092.546572 | H8: 1002.754885 | I8: 945.9828183 | J8: 1022.86704 | K8: 916.1894575
A9: FL | B9: Florida | C9: 56452020.6 | D9: 147327444.5 | E9: 2144.767409 | F9: 867.3736027 | G9: 1096.625877 | H9: 1006.259105 | I9: 949.0400862 | J9: 1026.471599 | K9: 918.9313874
A10: Fort Mojave | B10: Lands of the Fort Mojave Tribe | C10: 0 | D10: 1360092.99 | E10: 0 | F10: 858.0739468 | G10: 876.5410274 | H10: 817.200941 | I10: 784.0957232 | J10: 832 | K10: 771
A11: GA | B11: Georgia | C11: 40990604.03 | D11: 37728636.2 | E11: 2293.513736 | F11: 839.5104622 | G11: 1290.230527 | H11: 1172.570143 | I11: 1094.138651 | J11: 1197.544738 | K11: 1049.063946
A12: IA | B12: Iowa | C12: 33314157 | D12: 1430247.71 | E12: 2251.192567 | F12: 890.8875932 | G12: 1638.295524 | H12: 1471.566324 | I12: 1354.998766 | J12: 1505.102285 | K12: 1283.017978
A13: ID | B13: Idaho | C13: 0 | D13: 3450055.312 | E13: 0 | F13: 834.142817 | G13: 876.5410274 | H13: 817.200941 | I13: 784.0957232 | J13: 832 | K13: 771
A14: IL | B14: Illinois | C14: 84487749.58 | D14: 10627105.72 | E14: 2300.606614 | F14: 945.0638752 | G14: 1582.235092 | H14: 1423.409068 | I14: 1312.983823 | J14: 1455.566109 | K14: 1245.336613
A15: IN | B15: Indiana | C15: 96338455.32 | D15: 12839309.01 | E15: 2168.279839 | F15: 952.6292973 | G15: 1577.570949 | H15: 1419.402458 | I15: 1309.488244 | J15: 1451.444775 | K15: 1242.201581
A16: KS | B16: Kansas | C16: 29631845.43 | D16: 666705.6 | E16: 2318.661203 | F16: 908 | G16: 1653.517581 | H16: 1484.642436 | I16: 1366.407059 | J16: 1518.552815 | K16: 1293.249577
A17: KY | B17: Kentucky | C17: 84364121 | D17: 3091968 | E17: 2166.13591 | F17: 908 | G17: 1642.911578 | H17: 1475.531624 | I17: 1358.458304 | J17: 1509.181127 | K17: 1286.120687
A18: LA | B18: Louisiana | C18: 36937785 | D18: 19352269.38 | E18: 1941.739709 | F18: 881.4895459 | G18: 1397.868071 | H18: 1265.033375 | I18: 1174.808475 | J18: 1292.655534 | K18: 1121.413184
A19: MA | B19: Massachusetts | C19: 2611409.24 | D19: 23554516.93 | E19: 2030.648471 | F19: 889.3259243 | G19: 955.829472 | H19: 885.3116166 | I19: 843.5190866 | J19: 902.0609363 | K19: 824.2942165
A20: MD | B20: Maryland | C20: 19190189 | D20: 676555.6 | E20: 2067.842701 | F20: 975.1773542 | G20: 1643.944247 | H20: 1476.418712 | I20: 1359.232247 | J20: 1510.093616 | K20: 1286.814802
A21: ME | B21: Maine | C21: 68163.318 | D21: 4677598.212 | E21: 2635.127567 | F21: 847.5920874 | G21: 887.951822 | H21: 827.0030872 | I21: 792.647635 | J21: 842.0828179 | K21: 778.6698358
A22: MI | B22: Michigan | C22: 53985652 | D22: 18499950.62 | E22: 2246.234247 | F22: 997.6506175 | G22: 1468.235716 | H22: 1325.48087 | I22: 1227.546073 | J22: 1354.833864 | K22: 1168.71123
A23: MN | B23: Minnesota | C23: 27587742 | D23: 5715510.03 | E23: 2331.544777 | F23: 877.4293552 | G23: 1534.654203 | H23: 1382.535943 | I23: 1277.323943 | J23: 1413.522635 | K23: 1213.354825
A24: MO | B24: Missouri | C24: 72859571 | D24: 4854569 | E24: 2082.906623 | F24: 889.7216375 | G24: 1621.371846 | H24: 1457.028478 | I24: 1342.315179 | J24: 1490.148168 | K24: 1271.642623
A25: MS | B25: Mississippi | C25: 15557042.4 | D25: 32147488.24 | E25: 1783.191139 | F25: 844.4030953 | G25: 1135.623768 | H25: 1039.759229 | I25: 978.2673695 | J25: 1060.930955 | K25: 945.1440599
A26: MT | B26: Montana | C26: 15432987.03 | D26: 0 | E26: 2481.349954 | F26: 0 | G26: 1670.999267 | H26: 1499.659623 | I26: 1379.508849 | J26: 1534 | K26: 1305
A27: Navajo | B27: Lands of the Navajo Nation | C27: 29629453 | D27: 0 | E27: 2120.651542 | F27: 0 | G27: 1670.999267 | H27: 1499.659623 | I27: 1379.508849 | J27: 1534 | K27: 1305
A28: NC | B28: North Carolina | C28: 54920452 | D28: 25519801.99 | E28: 2053.8291 | F28: 852.5716371 | G28: 1418.956093 | H28: 1283.148491 | I28: 1190.613062 | J28: 1311.289353 | K28: 1135.587628
A29: ND | B29: North Dakota | C29: 28513455.8 | D29: 0 | E29: 2367.847028 | F29: 0 | G29: 1670.999267 | H29: 1499.659623 | I29: 1379.508849 | J29: 1534 | K29: 1305
A30: NE | B30: Nebraska | C30: 24698864.81 | D30: 423638 | E30: 2180.474745 | F30: 1015.503236 | G30: 1657.602405 | H30: 1488.151398 | I30: 1369.468463 | J30: 1522.162251 | K30: 1295.995217
A31: NH | B31: New Hampshire | C31: 1353955 | D31: 6946868.99 | E31: 2355.604566 | F31: 877.5772206 | G31: 1006.125838 | H31: 928.5174014 | I31: 881.2141033 | J31: 946.5038626 | K31: 858.1012289
A32: NJ | B32: New Jersey | C32: 2775579 | D32: 33664782.1 | E32: 2380.144121 | F32: 948.5615569 | G32: 937.0530954 | H32: 869.1822587 | I32: 829.4469798 | J32: 885.4697352 | K32: 811.6735592
A33: NM | B33: New Mexico | C33: 13561988 | D33: 5730957.01 | E33: 2173.652313 | F33: 907.4086249 | G33: 1435.005954 | H33: 1296.935707 | I33: 1202.64176 | J33: 1325.471348 | K33: 1146.375641
A34: NV | B34: Nevada | C34: 4413515.04 | D34: 23783255.68 | E34: 2222.435952 | F34: 894.1041002 | G34: 1000.89404 | H34: 924.0231615 | I34: 877.2930901 | J34: 941.880936 | K34: 854.5846436
A35: NY | B35: New York | C35: 16661795.41 | D35: 44035433.69 | E35: 1580.319055 | F35: 973.351581 | G35: 1094.625129 | H35: 1004.540414 | I35: 947.5406092 | J35: 1024.703696 | K35: 917.5865721
A36: OH | B36: Ohio | C36: 86729104.55 | D36: 23687008.75 | E36: 2125.610123 | F36: 866.186651 | G36: 1500.56817 | H36: 1353.255224 | I36: 1251.777891 | J36: 1383.403501 | K36: 1190.443688
A37: OK | B37: Oklahoma | C37: 37590917.72 | D37: 29943375.99 | E37: 2099.350303 | F37: 895.2781553 | G37: 1318.752127 | H37: 1197.070882 | I37: 1115.514394 | J37: 1222.747023 | K37: 1068.234915
A38: OR | B38: Oregon | C38: 3116930.734 | D38: 13486829.82 | E38: 2079.525221 | F38: 860.3653333 | G38: 1025.680212 | H38: 945.3150772 | I38: 895.8692859 | J38: 963.782518 | K38: 871.2448214
A39: PA | B39: Pennsylvania | C39: 88716924.7 | D39: 57420455.12 | E39: 2121.472286 | F39: 901.5774774 | G39: 1358.839888 | H39: 1231.50723 | I39: 1145.558489 | J39: 1258.169411 | K39: 1095.180151
A40: RI | B40: Rhode Island | C40: 0 | D40: 8140017.28 | E40: 0 | F40: 917.8814667 | G40: 876.5410274 | H40: 817.200941 | I40: 784.0957232 | J40: 832 | K40: 771
A41: SC | B41: South Carolina | C41: 28875796.54 | D41: 11209393.6 | E41: 2156.912704 | F41: 847.8565584 | G41: 1448.837539 | H41: 1308.817371 | I41: 1213.007953 | J41: 1337.693227 | K41: 1155.672626
A42: SD | B42: South Dakota | C42: 4004975.174 | D42: 1401048 | E42: 2239.73821 | F42: 908 | G42: 1465.104085 | H42: 1322.790723 | I42: 1225.199047 | J42: 1352.066689 | K42: 1166.606285
A43: TN | B43: Tennessee | C43: 34373696 | D43: 7333243.55 | E43: 2243.596664 | F43: 770.9757423 | G43: 1531.311344 | H43: 1379.664347 | I43: 1274.81861 | J43: 1410.568815 | K43: 1211.107902
A44: TX | B44: Texas | C44: 164311070.4 | D44: 160034168.3 | E44: 2122.949261 | F44: 967.7471123 | G44: 1279.008115 | H44: 1162.929822 | I44: 1085.727924 | J44: 1187.628379 | K44: 1041.520733
A45: UTE | B45: Lands of the Uintah and Ouray Reservation | C45: 3090433 | D45: 0 | E45: 2144.745756 | F45: 0 | G45: 1670.999267 | H45: 1499.659623 | I45: 1379.508849 | J45: 1534 | K45: 1305
A46: UT | B46: Utah | C46: 27452488 | D46: 8486186.8 | E46: 2069.996891 | F46: 884.4869388 | G46: 1483.404119 | H46: 1338.510892 | I46: 1238.914155 | J46: 1368.236984 | K46: 1178.906765
A47: VA | B47: Virginia | C47: 16015084 | D47: 36291894.91 | E47: 2402.676089 | F47: 908.9617339 | G47: 1119.784199 | H47: 1026.152659 | I47: 966.3962771 | J47: 1046.934779 | K47: 934.4973962
A48: WA | B48: Washington | C48: 7733957.13 | D48: 11728153.58 | E48: 2431.875628 | F48: 994.7910458 | G48: 1192.247071 | H48: 1088.400004 | I48: 1020.70416 | J48: 1110.964496 | K48: 983.2037619
A49: WI | B49: Wisconsin | C49: 32160389 | D49: 10244272.94 | E49: 2362.024708 | F49: 846.4798869 | G49: 1479.071147 | H49: 1334.788765 | I49: 1235.666774 | J49: 1364.408279 | K49: 1175.994332
A50: WV | B50: West Virginia | C50: 70078372.82 | D50: 0 | E50: 2063.943942 | F50: 0 | G50: 1670.999267 | H50: 1499.659623 | I50: 1379.508849 | J50: 1534 | K50: 1305
A51: WY | B51: Wyoming | C51: 42907427.02 | D51: 483120 | E51: 2330.539936 | F51: 908 | G51: 1662.153592 | H51: 1492.060976 | I51: 1372.879387 | J51: 1526.183776 | K51: 1299.054325
A53: Data derived from EPA goal calculation TSD spreadsheet

Sheet Test
A1: State Rate with Calculated ERCs: | B1: =((NGCCGen*NGCCActualRate)+(FFSGen*FFSActualRate))/(NGCCGen+FFSGen-'State vs Performance'!G4) -> 1030.767341
A2: NGCC Rate with Calculated ERCs: | B2: =(NGCCGen*NGCCActualRate)/(NGCCGen-NGCCERCs) -> 771
A3: FFS Rate with Calculated ERCs: | B3: =(FFSGen*FFSActualRate)/(FFSGen-FFSERCs) -> 1305
A4: FFS Rate with Calculated ERCs and GS_ERCs: | B4: =(FFSGen*FFSActualRate)/(FFSGen+(-PerfERCs+NGCCERCs+GSERCs)) -> 1305
